bitfinex-derivatives/quotes_SOLF0:USTF0_20241024
["timestamp","ask_amount","ask_price","bid_price","bid_amount"]
[1729768487909,7.1240438,172.65,172.64,2.8989]
[1729768492305,7.0983,172.68,172.64,2.8989]
[1729768492506,7.1240438,172.65,172.64,2.8989]
[1729768493301,7.1240438,172.65,172.58,7.1240438]
[1729768493302,7.1240438,172.65,172.63,2.899]
[1729768495413,7.1240438,172.65,172.59,4.2]
[1729768495617,7.1240438,172.65,172.64,2.8989]
[1729768499219,7.1240438,172.65,172.59,4.2]
[1729768499220,7.1240438,172.65,172.63,2.899]
[1729768502618,7.1240438,172.66,172.63,2.899]
[1729768503323,4.2,172.69,172.59,11.3240438]
[1729768503516,3.607,172.71,172.61,7.1240438]
[1729768503723,4.2,172.69,172.61,7.1240438]
[1729768504016,4.2,172.69,172.65,2.8986]
[1729768504219,7.1240438,172.66,172.57,4.2]
[1729768504525,7.1240438,172.66,172.62,2.8991]
[1729768504526,10.0227438,172.66,172.62,2.8991]
[1729768504714,7.1240438,172.66,172.62,2.8991]
[1729768506310,10.0227438,172.66,172.62,2.8991]
[1729768510439,2.8987,172.66,172.62,2.8991]
[1729768510747,7.1240438,172.64,172.62,2.8991]
[1729768517425,7.1240438,172.64,172.61,2.8994]
[1729768520230,7.1240438,172.63,172.57,11.3240438]
[1729768520431,10.0232438,172.63,172.59,2.8996]
[1729768520636,7.1240438,172.63,172.56,4.2]
[1729768520833,7.1240438,172.63,172.56,11.3240438]
[1729768521133,10.0231438,172.63,172.59,2.8997]
[1729768521330,7.1240438,172.63,172.56,11.3240438]
[1729768522026,7.1240438,172.63,172.58,2.8999]
[1729768522227,7.1240438,172.63,172.56,11.3240438]
[1729768522633,2.8987,172.66,172.58,7.1240438]
[1729768522832,7.1240438,172.66,172.6,7.1240438]
[1729768523735,4.2,172.67,172.6,7.1240438]
[1729768524036,7.1240438,172.66,172.63,2.899]
[1729768524634,7.1240438,172.66,172.6,7.1240438]
[1729768524831,7.1240438,172.66,172.64,2.8989]
[1729768526135,7.1240438,172.65,172.64,2.8989]
[1729768527534,11.3240438,172.68,172.62,7.1240438]
[1729768527735,3.607,172.71,172.63,7.1240438]
[1729768527945,8.3008438,172.71,172.63,7.1240438]
[1729768528139,2.8979,172.7,172.68,2.8981]
[1729768529845,7.1240438,172.69,172.68,2.8981]
[1729768530245,7.1240438,172.7,172.68,2.8981]
[1729768530646,10.0219438,172.7,172.68,2.8981]
[1729768530946,10.0219438,172.7,172.67,2.8983]
[1729768531544,2.8981,172.69,172.67,2.8983]
[1729768535541,2.8981,172.69,172.64,7.1240438]
[1729768535743,2.8981,172.69,172.66,2.8986]
[1729768535945,7.1240438,172.7,172.63,7.1240438]
[1729768536138,2.8983,172.68,172.65,2.8987]
[1729768537949,7.1240438,172.7,172.64,7.1240438]
[1729768539350,10.0219438,172.7,172.66,2.8985]
[1729768544753,10.0219438,172.7,172.65,2.8986]
[1729768544955,10.0219438,172.7,172.64,7.1240438]
[1729768545651,10.0219438,172.7,172.66,2.8984]
[1729768547254,2.8979,172.7,172.67,2.8984]
[1729768548857,62.58,172.77,172.67,7.1240438]
[1729768549168,7.0689,172.82,172.7,7.1240438]
[1729768549355,13.7892438,172.76,172.7,7.1240438]
[1729768550258,4.2,172.76,172.73,2.8974]
[1729768551250,7.0969,172.76,172.73,2.8974]
[1729768553153,7.0969,172.76,172.74,2.8972]
[1729768554065,4.2,172.76,172.74,2.8972]
[1729768554656,4.2,172.76,172.75,2.8971]
[1729768555249,11.3240438,172.79,172.75,2.8971]
[1729768556349,2.8968,172.77,172.75,2.8971]
[1729768558162,2.4488,172.81,172.73,7.1240438]
[1729768558470,11.3240438,172.8,172.74,7.1240438]
[1729768559259,2.8966,172.78,172.76,2.8968]
[1729768559463,2.8966,172.78,172.74,7.1240438]
[1729768560259,2.8966,172.78,172.75,2.897]
[1729768560561,2.8967,172.78,172.75,2.897]
[1729768560759,7.1240438,172.79,172.71,7.1240438]
[1729768561862,7.1240438,172.79,172.73,7.1240438]
[1729768562260,2.8968,172.77,172.75,2.897]
[1729768567766,7.1240438,172.79,172.74,2.8971]
[1729768568362,2.8969,172.76,172.74,2.8971]
[1729768569773,7.1240438,172.79,172.73,7.1240438]
[1729768569974,7.1240438,172.77,172.71,7.1240438]
[1729768570766,2.8973,172.74,172.71,10.0216438]
[1729768570974,7.1240438,172.77,172.71,7.1240438]
[1729768571373,2.8972,172.75,172.72,2.8976]
[1729768571571,7.1240438,172.77,172.71,7.1240438]
[1729768572075,7.1240438,172.77,172.71,10.0216438]
[1729768572977,2.8972,172.75,172.71,10.0216438]
[1729768575883,2.8967,172.78,172.74,10.0212438]
[1729768578284,1.2769,172.82,172.74,7.1240438]
[1729768578588,2.8961,172.81,172.79,7.1240438]
[1729768579885,7.1240438,172.84,172.79,7.1240438]
[1729768580084,2.896,172.82,172.79,10.0203438]
[1729768580287,4.2,172.83,172.8,7.1240438]
[1729768580792,7.0958,172.83,172.8,10.0201438]
[1729768581387,4.2,172.86,172.81,7.1240438]
[1729768582086,7.1240438,172.84,172.77,7.1240438]
[1729768582281,7.1240438,172.82,172.77,11.3240438]
[1729768584293,7.1240438,172.82,172.79,2.8963]
[1729768584689,7.1240438,172.84,172.77,11.3240438]
[1729768584886,3.8064,172.91,172.82,7.1240438]
[1729768585086,7.1240438,172.88,172.82,7.1240438]
[1729768585293,2.8958,172.83,172.8,2.8962]
[1729768585494,2.8958,172.83,172.78,7.1240438]
[1729768585495,10.0198438,172.83,172.78,7.1240438]
[1729768585994,10.0198438,172.83,172.79,2.8963]
[1729768587701,10.0198438,172.83,172.8,2.8962]
[1729768590803,7.1240438,172.83,172.75,1.2652]
[1729768591009,4.2,172.86,172.77,2.8966]
[1729768591010,2.8962,172.8,172.77,2.8966]
[1729768591306,7.1240438,172.81,172.77,2.8966]
[1729768592005,7.1240438,172.8,172.74,2.8972]
[1729768592200,4.2,172.82,172.74,2.8972]
[1729768592201,2.8967,172.77,172.74,2.8972]
[1729768593410,10.0207438,172.77,172.74,2.8972]
[1729768594096,7.1240438,172.77,172.71,7.1240438]
[1729768594300,2.897,172.76,172.72,2.8974]
[1729768594501,7.1240438,172.75,172.72,2.8974]
[1729768597702,2.897,172.76,172.72,2.8974]
[1729768597902,10.0210438,172.76,172.73,2.8974]
[1729768598603,2.8962,172.8,172.76,2.8968]
[1729768598807,10.0202438,172.8,172.76,2.8968]
[1729768599514,10.0202438,172.8,172.74,7.1240438]
[1729768600013,7.1240438,172.8,172.74,7.1240438]
[1729768600221,4.2,172.81,172.78,2.8965]
[1729768600717,10.0200438,172.82,172.78,2.8965]
[1729768600914,7.1240438,172.82,172.78,2.8965]
[1729768602314,2.8961,172.81,172.78,2.8965]
[1729768602909,2.8967,172.78,172.75,2.897]
[1729768603104,2.8967,172.78,172.73,4.2]
[1729768603105,7.1240438,172.78,172.73,4.2]
[1729768603512,7.1240438,172.78,172.74,2.8971]
[1729768603818,7.1240438,172.78,172.73,4.2]
[1729768604713,7.1240438,172.78,172.75,2.8969]
[1729768606316,10.0204438,172.79,172.75,2.8969]
[1729768606921,4.2,172.8,172.74,7.1240438]
[1729768607117,3.7336,172.85,172.76,7.1240438]
[1729768607118,7.1240438,172.82,172.76,7.1240438]
[1729768608020,2.8961,172.81,172.78,2.8965]
[1729768608225,7.1240438,172.82,172.78,2.8965]
[1729768608724,10.0200438,172.82,172.78,2.8965]
[1729768609526,7.1240438,172.82,172.78,2.8965]
[1729768609720,2.8961,172.81,172.78,2.8965]
[1729768611121,10.0201438,172.81,172.78,2.8965]
[1729768617018,16.71070102,173.06,172.8,7.1240438]
[1729768617219,7.1240438,172.97,172.89,7.1240438]
[1729768617531,4.2,172.98,172.91,7.1240438]
[1729768617729,2.4385,173.01,172.83,5.7914]
[1729768617730,2.4385,173.01,172.94,7.1240438]
[1729768617926,4.2,173.0,172.94,7.1240438]
[1729768618222,4.2,173.0,172.89,4.2]
[1729768618223,1.2495,173.01,172.91,11.10829076]
[1729768618728,1.2495,173.01,172.96,2.8935]
[1729768620127,1.2495,173.01,172.91,11.10829076]
[1729768620329,2.8932,172.98,172.94,2.8938]
[1729768622240,2.8932,172.98,172.93,2.894]
[1729768625640,2.8934,172.97,172.93,2.894]
[1729768626033,16.55779076,173.01,172.93,2.894]
[1729768626234,2.8934,172.97,172.93,2.894]
[1729768626940,2.8934,172.97,172.92,7.0941]
[1729768627526,2.8934,172.97,172.92,2.8941]
[1729768627733,11.10829076,172.99,172.9,7.0745]
[1729768627937,5.4495,173.01,172.84,3.6895]
[1729768627938,11.10829076,172.97,172.84,3.6895]
[1729768628243,2.8943,172.92,172.87,2.8949]
[1729768629640,2.8943,172.92,172.88,2.8949]
[1729768635637,2.4938,172.96,172.85,4.32]
[1729768635842,2.4938,172.96,172.86,11.10829076]
[1729768635843,2.8939,172.94,172.86,11.10829076]
[1729768636044,2.4938,172.96,172.86,11.10829076]
[1729768636937,2.8941,172.93,172.89,2.8946]
[1729768637244,2.8941,172.93,172.86,11.10829076]
[1729768638241,2.4938,172.96,172.86,7.11568784]
[1729768638242,2.8944,172.91,172.86,7.11568784]
[1729768638842,7.11568784,172.92,172.67,50.49801136]
[1729768638843,7.11568784,172.87,172.67,50.49801136]
[1729768639038,2.4938,172.96,172.67,50.49801136]
[1729768639039,7.11568784,172.83,172.8,2.8962]
[1729768639236,7.11568784,172.83,172.77,7.11568784]
[1729768639438,7.11568784,172.85,172.79,7.11568784]
[1729768639840,10.01118784,172.85,172.8,2.8962]
[1729768640150,10.01118784,172.85,172.79,7.11568784]
[1729768640151,7.11568784,172.85,172.79,7.11568784]
[1729768640346,7.11568784,172.83,172.77,12.62528784]
[1729768640547,7.11568784,172.83,172.79,2.8963]
[1729768642245,2.8956,172.84,172.79,2.8963]
[1729768642646,2.8956,172.84,172.8,2.8962]
[1729768647652,2.8954,172.85,172.77,16.62764813]
[1729768647861,2.8954,172.85,172.81,2.8959]
[1729768648666,16.64144813,172.88,172.78,1.204]
[1729768648861,62.48,172.95,172.82,11.11804813]
[1729768649062,11.11804813,172.93,172.82,11.11804813]
[1729768649553,2.8947,172.9,172.85,2.8953]
[1729768649764,1.2346,172.94,172.84,11.11804813]
[1729768649765,4.32,172.91,172.84,11.11804813]
[1729768650966,4.32,172.93,172.87,2.8949]
[1729768651666,4.32,172.93,172.86,2.8952]
[1729768652564,2.8946,172.9,172.86,2.8952]
[1729768653461,1.2346,172.94,172.82,11.11804813]
[1729768653666,4.32,172.93,172.84,11.11804813]
[1729768653967,4.32,172.93,172.85,6.8559]
[1729768654164,7.2142,172.93,172.89,2.8947]
[1729768654669,2.8942,172.92,172.89,2.8947]
[1729768654968,4.32,172.95,172.92,2.8942]
[1729768655561,7.2138,172.95,172.92,2.8942]
[1729768655761,7.2138,172.95,172.87,11.11804813]
[1729768655762,2.8938,172.95,172.87,11.11804813]
[1729768655964,4.32,172.96,172.89,11.11804813]
[1729768656360,15.43804813,172.97,172.86,12.37734813]
[1729768656562,2.894,172.94,172.9,2.8944]
[1729768657065,2.894,172.94,172.91,2.8944]
[1729768659466,1.1733,173.03,172.89,4.32]
[1729768659673,11.11804813,173.02,172.9,11.11804813]
[1729768660266,2.8936,172.96,172.93,2.894]
[1729768660770,4.34,172.99,172.89,4.32]
[1729768660966,11.11804813,172.98,172.87,4.34]
[1729768661369,2.8938,172.95,172.91,2.8943]
[1729768663670,2.8938,172.95,172.87,4.34]
[1729768664167,2.8939,172.94,172.87,4.34]
[1729768664367,2.8939,172.94,172.91,2.8942]
[1729768665768,2.8937,172.96,172.9,2.8944]
[1729768665966,2.8937,172.96,172.9,11.11804813]
[1729768666280,4.34,172.98,172.9,11.11804813]
[1729768667363,2.8938,172.95,172.92,2.8941]
[1729768671173,2.894,172.94,172.91,2.8943]
[1729768671363,11.11804813,172.97,172.87,4.34]
[1729768671763,2.8941,172.93,172.9,2.8945]
[1729768672470,2.894,172.94,172.9,2.8945]
[1729768672872,15.45804813,172.94,172.87,2.895]
[1729768673173,2.8946,172.9,172.87,2.895]
[1729768673777,2.8946,172.9,172.86,2.8951]
[1729768673970,11.11804813,172.92,172.81,12.29664813]
[1729768674162,11.11804813,172.89,172.8,4.34]
[1729768674366,11.11804813,172.89,172.79,2.5501]
[1729768674568,2.8952,172.86,172.79,2.5501]
[1729768674777,11.11804813,172.89,172.79,2.5501]
[1729768674972,11.11804813,172.89,172.83,2.8957]
[1729768675878,2.8952,172.87,172.83,2.8957]
[1729768683273,2.8952,172.87,172.84,2.8955]
[1729768684285,10.01554494,172.87,172.84,2.8955]
[1729768684679,2.8952,172.86,172.84,2.8955]
[1729768688584,7.12034494,172.87,172.84,2.8955]
[1729768688784,2.8947,172.89,172.87,2.895]
[1729768688977,10.01504494,172.89,172.87,2.895]
[1729768689184,1.2262,172.92,172.84,7.12034494]
[1729768689383,7.2345,172.91,172.86,7.12034494]
[1729768689674,7.12034494,172.92,172.86,7.12034494]
[1729768690286,7.2342,172.93,172.87,7.12034494]
[1729768690476,7.2342,172.93,172.83,4.34]
[1729768690477,4.34,172.93,172.89,7.12034494]
[1729768691092,4.34,172.93,172.91,2.8943]
[1729768692980,4.34,172.93,172.92,2.8942]
[1729768693186,2.8938,172.95,172.92,2.8942]
[1729768693487,5.4789,172.96,172.87,6.837]
[1729768693681,2.8942,172.92,172.85,4.28]
[1729768694193,2.8942,172.92,172.89,2.8947]
[1729768695589,5.4789,172.96,172.91,2.8943]
[1729768696589,2.8936,172.96,172.86,11.11488649]
[1729768696790,2.95725717,173.09,172.94,2.8938]
[1729768696791,4.28,172.99,172.94,2.8938]
[1729768698294,2.8935,172.97,172.94,2.8938]
[1729768699697,4.28,173.02,172.96,11.11488649]
[1729768700191,4.28,173.02,173.01,2.8927]
[1729768700594,4.28,173.05,173.01,2.8927]
[1729768702299,2.8922,173.04,173.01,2.8927]
[1729768703694,2.8922,173.04,172.96,11.11488649]
[1729768704010,4.28,173.05,172.93,15.39488649]
[1729768704497,2.8928,173.01,172.98,2.8931]
[1729768705895,2.893,173.0,172.96,2.8934]
[1729768706603,2.893,173.0,172.97,2.8933]
[1729768708991,2.893,173.0,172.93,15.39488649]
[1729768709200,2.8932,172.99,172.93,15.39488649]
[1729768709594,11.11488649,173.03,172.95,2.8936]
[1729768709794,2.8932,172.99,172.95,2.8936]
[1729768710096,2.8932,172.99,172.93,15.39488649]
[1729768711000,2.8932,172.99,172.95,2.8936]
[1729768712399,2.8932,172.99,172.95,10.00221168]
[1729768714899,7.10861168,172.99,172.95,7.10861168]
[1729768715200,2.8933,172.98,172.94,2.8938]
[1729768719399,2.8933,172.98,172.95,2.8937]
[1729768729516,4.28,173.01,172.93,7.10861168]
[1729768729720,7.10861168,172.99,172.93,7.10861168]
[1729768731519,2.8932,172.98,172.95,2.8937]
[1729768736511,10.00181168,172.98,172.95,2.8937]
[1729768737822,10.00181168,172.98,172.94,2.8937]
[1729768738822,10.00181168,172.98,172.95,2.8937]
[1729768740421,4.28,173.01,172.96,7.10861168]
[1729768740621,2.893,173.0,172.97,2.8933]
[1729768741422,11.32861168,173.03,172.98,2.8931]
[1729768741917,2.8928,173.01,172.98,2.8931]
[1729768742520,7.10861168,173.0,172.98,2.8931]
[1729768743929,7.10861168,173.0,172.95,7.10861168]
[1729768743930,2.8933,172.98,172.95,2.8937]
[1729768745017,7.10861168,172.99,172.91,6.6727]
[1729768745219,10.00211168,172.97,172.92,7.10861168]
[1729768746125,2.8931,172.99,172.93,7.10861168]
[1729768746427,7.10861168,172.99,172.93,7.10861168]
[1729768747221,2.8933,172.98,172.95,2.8937]
[1729768748025,10.00191168,172.98,172.95,2.8937]
[1729768751326,7.10861168,172.97,172.95,2.8937]
[1729768751728,2.8942,172.92,172.89,2.8947]
[1729768751931,1.1745,173.02,172.89,2.8947]
[1729768751932,7.10861168,172.91,172.89,2.8947]
[1729768752426,7.10861168,172.92,172.9,2.8945]
[1729768753527,7.10861168,172.92,172.86,4.2]
[1729768753730,7.10861168,172.92,172.86,11.30861168]
[1729768754930,7.10861168,172.92,172.9,2.8945]
[1729768759030,7.10861168,172.92,172.86,4.2]
[1729768759231,10.00291168,172.92,172.86,4.2]
[1729768759430,10.00291168,172.92,172.86,11.30861168]
[1729768760332,2.8941,172.93,172.86,11.30861168]
[1729768760537,7.10861168,172.92,172.86,11.30861168]
[1729768761329,7.10861168,172.92,172.89,2.8946]
[1729768763136,7.10861168,172.9,172.77,5.801]
[1729768763332,7.10861168,172.86,172.8,7.10861168]
[1729768764042,2.8954,172.85,172.8,7.10861168]
[1729768764435,7.10861168,172.86,172.8,7.10861168]
[1729768764634,10.00381168,172.86,172.82,2.8959]
[1729768766144,2.8952,172.86,172.82,10.00451168]
[1729768766640,2.8952,172.86,172.82,2.8959]
[1729768767834,4.2,172.89,172.81,7.10861168]
[1729768767835,7.10861168,172.88,172.84,2.8955]
[1729768768431,10.00361168,172.88,172.84,2.8955]
[1729768769044,2.895,172.88,172.84,2.8955]
[1729768769227,10.00361168,172.88,172.84,2.8955]
[1729768769427,10.00361168,172.88,172.83,7.10861168]
[1729768769643,10.00361168,172.88,172.85,2.8954]
[1729768769832,10.00361168,172.88,172.83,7.10861168]
[1729768770429,2.8947,172.9,172.85,7.10861168]
[1729768771137,2.8947,172.9,172.86,2.8951]
[1729768772038,2.8947,172.89,172.86,2.8951]
[1729768773745,2.8946,172.9,172.85,7.10861168]
[1729768774148,2.8946,172.9,172.86,2.8952]
[1729768775145,2.8946,172.9,172.87,2.895]
[1729768775645,14.20311168,172.91,172.87,2.895]
[1729768775846,11.30861168,172.91,172.87,2.895]
[1729768777446,2.8946,172.9,172.87,2.895]
[1729768781243,7.10861168,172.89,172.87,2.895]
[1729768781852,10.00351168,172.89,172.86,2.8952]
[1729768790353,2.8949,172.88,172.85,2.8954]
[1729768791847,2.8951,172.87,172.83,4.2]
[1729768792255,2.8951,172.87,172.81,7.10861168]
[1729768792256,2.8951,172.87,172.81,11.30861168]
[1729768793252,2.8951,172.87,172.84,2.8955]
[1729768794455,7.10861168,172.88,172.81,11.30861168]
[1729768794761,10.00391168,172.86,172.8,7.10861168]
[1729768795058,10.00391168,172.86,172.83,2.8956]
[1729768796155,2.8953,172.86,172.83,2.8956]
[1729768796455,4.2,172.9,172.85,7.10861168]
[1729768797258,7.0946,172.9,172.87,2.895]
[1729768797560,4.2,172.9,172.85,7.10861168]
[1729768798551,4.2,172.9,172.87,2.895]
[1729768798752,1.2075,172.92,172.85,7.10861168]
[1729768798956,7.10861168,172.91,172.85,7.10861168]
[1729768800262,2.8947,172.9,172.85,7.10861168]
[1729768800861,1.2075,172.92,172.91,2.8944]
[1729768801058,5.4075,172.92,172.87,7.10861168]
[1729768801464,2.8945,172.9,172.87,2.895]
[1729768801767,2.8945,172.9,172.83,4.2]
[1729768801768,7.10861168,172.88,172.83,4.2]
[1729768802059,10.00381168,172.86,172.83,2.8956]
[1729768802964,7.10861168,172.86,172.83,2.8956]
[1729768803161,2.8951,172.87,172.83,2.8956]
[1729768803362,5.4075,172.92,172.86,2.8952]
[1729768803559,7.10861168,172.89,172.86,2.8952]
[1729768803754,12.51611168,172.92,172.85,7.10861168]
[1729768803954,12.51611168,172.92,172.86,7.10861168]
[1729768804168,5.4075,172.92,172.89,2.8946]
[1729768805066,8.3018,172.92,172.89,2.8946]
[1729768805455,11.30861168,172.93,172.9,2.8945]
[1729768806159,14.20271168,172.93,172.9,2.8945]
[1729768810567,2.8936,172.96,172.93,2.8939]
[1729768810871,7.10861168,172.96,172.93,2.8939]
[1729768811569,7.10861168,172.94,172.85,2.4962]
[1729768811874,7.10861168,172.94,172.79,5.7925]
[1729768811875,7.10861168,172.91,172.84,7.10861168]
[1729768812066,10.00341168,172.89,172.86,2.895]
[1729768812463,7.10861168,172.89,172.87,2.895]
[1729768812970,7.10861168,172.88,172.83,7.10861168]
[1729768813270,4.2,172.89,172.82,4.2]
[1729768813460,7.10861168,172.88,172.82,11.30861168]
[1729768814281,7.10861168,172.88,172.84,2.8954]
[1729768815371,10.00351168,172.88,172.84,2.8954]
[1729768817877,1.1893,172.93,172.84,7.10861168]
[1729768818179,4.2,172.9,172.87,2.895]
[1729768818670,7.0946,172.9,172.85,7.10861168]
[1729768818976,14.20321168,172.9,172.86,2.8951]
[1729768819371,7.10861168,172.87,172.76,118.50939128]
[1729768819575,7.10861168,172.84,172.79,7.10861168]
[1729768819774,7.10861168,172.86,172.79,7.10861168]
[1729768820073,4.2,172.9,172.84,7.10861168]
[1729768820264,11.30861168,172.9,172.84,7.10861168]
[1729768820570,10.00351168,172.88,172.83,2.8957]
[1729768820767,10.00351168,172.88,172.82,7.10861168]
[1729768821171,4.2,172.9,172.84,2.8954]
[1729768821172,10.00371168,172.87,172.84,2.8954]
[1729768822170,2.8954,172.85,172.82,7.10861168]
[1729768822370,7.10861168,172.87,172.82,7.10861168]
[1729768822668,7.10861168,172.89,172.82,7.10861168]
[1729768822870,2.895,172.88,172.84,2.8954]
[1729768824272,4.2,172.9,172.79,4.2]
[1729768824273,7.10861168,172.86,172.79,4.2]
[1729768824482,7.10861168,172.84,172.77,7.10861168]
[1729768824872,2.8958,172.83,172.77,7.10861168]
[1729768825468,7.10861168,172.84,172.77,7.10861168]
[1729768825676,10.00421168,172.84,172.8,2.8961]
[1729768828375,14.20391168,172.86,172.82,2.8957]
[1729768829081,2.8954,172.85,172.82,2.8957]
[1729768829276,7.10861168,172.84,172.81,2.8959]
[1729768830175,7.10861168,172.84,172.78,7.10861168]
[1729768830375,4.2,172.86,172.8,7.10861168]
[1729768830681,11.30861168,172.86,172.8,7.10861168]
[1729768831186,14.20391168,172.86,172.82,2.8957]
[1729768832280,14.20391168,172.86,172.83,2.8957]
[1729768832476,4.2,172.87,172.81,7.10861168]
[1729768832680,1.1893,172.93,172.84,7.10861168]
[1729768832886,7.10861168,172.9,172.84,7.10861168]
[1729768833075,2.8948,172.89,172.84,7.10861168]
[1729768833277,7.10861168,172.9,172.84,7.10861168]
[1729768834286,7.10861168,172.9,172.87,2.895]
[1729768834580,7.10861168,172.9,172.84,7.10861168]
[1729768834886,7.0943,172.92,172.88,2.8948]
[1729768835480,4.2,172.92,172.88,2.8948]
[1729768835786,4.2,172.92,172.89,2.8947]
[1729768836379,7.0943,172.92,172.89,2.8947]
[1729768837586,7.0943,172.92,172.87,7.10861168]
[1729768837982,4.2,172.92,172.87,7.10861168]
[1729768838485,4.2,172.92,172.9,2.8944]
[1729768839093,4.2,172.92,172.91,2.8944]
[1729768839881,4.2,172.94,172.92,2.8942]
[1729768840477,2.8938,172.95,172.92,2.8942]
[1729768840681,10.00241168,172.95,172.92,2.8942]
[1729768840881,7.10861168,172.95,172.92,2.8942]
[1729768841482,4.2,172.96,172.91,2.8942]
[1729768841682,4.2,172.96,172.9,7.10861168]
[1729768841683,11.30861168,172.96,172.9,7.10861168]
[1729768842187,7.10861168,172.95,172.92,2.8941]
[1729768846799,10.00241168,172.95,172.91,2.8943]
[1729768846983,10.00241168,172.95,172.89,7.10861168]
[1729768847788,10.00241168,172.95,172.91,2.8943]
[1729768850299,2.4762,172.99,172.93,2.8939]
[1729768850300,2.8934,172.97,172.93,2.8939]
[1729768850496,7.10861168,172.99,172.93,7.10861168]
[1729768850797,7.10861168,172.99,172.96,2.8935]
[1729768850999,4.22,173.0,172.95,7.10861168]
[1729768851494,159.47368643,173.03,172.9,2.5261]
[1729768851699,7.10861168,172.97,172.91,7.10861168]
[1729768852590,10.00211168,172.97,172.93,2.8939]
[1729768854791,10.00211168,172.97,172.93,2.894]
[1729768854993,10.00211168,172.97,172.91,7.10861168]
[1729768854994,7.10861168,172.97,172.91,7.10861168]
[1729768855493,10.00201168,172.97,172.93,2.894]
[1729768857695,1.2045,173.01,172.91,7.10861168]
[1729768857998,7.10861168,172.98,172.93,7.10861168]
[1729768858589,10.00191168,172.98,172.94,2.8937]
[1729768858800,7.10861168,172.98,172.94,2.8937]
[1729768858997,1.2045,173.01,172.94,2.8937]
[1729768859303,7.10861168,172.98,172.94,2.8937]
[1729768859502,2.8934,172.97,172.94,2.8937]
[1729768860491,4.0972,173.01,172.96,7.10861168]
[1729768861095,4.0972,173.01,172.97,2.8933]
[1729768862101,4.0972,173.01,172.98,2.8932]
[1729768862301,4.22,173.03,172.97,7.10861168]
[1729768862501,1.2643,173.08,172.94,4.22]
[1729768862701,7.10861168,173.03,172.97,7.10861168]
[1729768863104,7.10861168,173.03,172.99,2.893]
[1729768863412,7.10861168,173.0,172.94,4.22]
[1729768864012,7.10861168,172.98,172.95,2.8937]
[1729768864714,7.10861168,172.98,172.92,11.32861168]
[1729768865719,7.10861168,172.98,172.95,2.8936]
[1729768866216,7.10861168,172.98,172.94,7.10861168]
[1729768866418,7.10861168,172.98,172.96,2.8935]
[1729768867208,7.10861168,172.98,172.92,4.22]
[1729768867209,10.00181168,172.98,172.95,2.8937]
[1729768867917,4.22,173.01,172.87,1.2903]
[1729768867918,7.10861168,172.96,172.87,1.2903]
[1729768868222,7.10861168,172.93,172.88,4.22]
[1729768868415,7.10861168,172.94,172.91,2.8942]
[1729768870117,7.10861168,172.92,172.89,2.8947]
[1729768870318,7.10861168,172.9,172.89,2.8947]
[1729768872219,7.10861168,172.9,172.86,4.22]
[1729768873017,7.10861168,172.9,172.87,2.8949]
[1729768873731,7.0942,172.93,172.88,2.8947]
[1729768874026,7.10861168,172.92,172.85,7.10861168]
[1729768874626,7.10861168,172.92,172.89,2.8947]
[1729768875423,14.20281168,172.93,172.89,2.8947]
[1729768876529,11.30861168,172.93,172.86,7.10861168]
[1729768877226,14.20271168,172.93,172.89,2.8946]
[1729768878132,7.10861168,172.9,172.84,6.6642]
[1729768878330,7.10861168,172.88,172.84,5.4088]
[1729768878532,7.10861168,172.88,172.84,4.22]
[1729768878729,7.10861168,172.88,172.83,7.10861168]
[1729768878934,7.10861168,172.88,172.84,2.8955]
[1729768879227,7.10861168,172.88,172.83,11.32861168]
[1729768879428,7.10861168,172.88,172.86,2.8951]
[1729768879928,7.10861168,172.88,172.83,11.32861168]
[1729768880133,4.2,172.93,172.84,7.10861168]
[1729768880331,7.10861168,172.91,172.84,7.10861168]
[1729768880634,7.10861168,172.91,172.89,2.8946]
[1729768881426,7.10861168,172.91,172.88,2.8948]
[1729768881622,7.10861168,172.91,172.84,7.10861168]
[1729768882130,7.10861168,172.91,172.89,2.8947]
[1729768882435,7.10861168,172.91,172.85,7.10861168]